fUST/lending_fUST_20250828
["ID","MTS","AMOUNT","RATE_DAILY","PERIOD"]
[381884886,1756390243707,-2866.05,0.00019452,2]
[381884887,1756390243716,-480.0,0.00019452,2]
[381884888,1756390243727,-480.0,0.00019452,2]
[381884889,1756390243736,-480.0,0.00019452,2]
[381884890,1756390243746,-480.0,0.00019452,2]
[381884891,1756390243755,-480.0,0.00019452,2]
[381884892,1756390243765,-707.05,0.00019452,2]
[381884893,1756390243775,-480.0,0.00019452,2]
[381884894,1756390243784,-621.84,0.00019452,2]
[381884895,1756390243793,-683.04,0.00019452,2]
[381884896,1756390243806,-480.0,0.00019452,2]
[381884897,1756390243822,-480.0,0.00019452,2]
[381884898,1756390243831,-480.0,0.00019452,2]
[381884899,1756390243840,-480.0,0.00019452,2]
[381884900,1756390243850,-515.85,0.00019452,2]
[381884901,1756390243860,-480.0,0.00019452,2]
[381884902,1756390243869,-480.0,0.00019452,2]
[381884903,1756390243879,-480.0,0.00019452,2]
[381884904,1756390243888,-1804.28,0.00019452,2]
[381884905,1756390243898,-937.39,0.00019452,2]
[381884906,1756390243907,-480.0,0.00019452,2]
[381884907,1756390243916,-480.0,0.00019452,2]
[381884908,1756390243926,-1344.44,0.00019452,2]
[381884909,1756390243935,-480.0,0.00019452,2]
[381884910,1756390243945,-480.0,0.00019452,2]
[381884911,1756390243954,-768.17,0.00019452,2]
[381884912,1756390243963,-480.0,0.00019452,2]
[381884913,1756390243975,-480.0,0.00019452,2]
[381884914,1756390243984,-480.0,0.00019452,2]
[381884915,1756390243994,-480.0,0.00019452,2]
[381884916,1756390244003,-480.0,0.00019452,2]
[381884917,1756390244012,-2384.43,0.00019452,2]
[381884918,1756390244022,-480.0,0.00019452,2]
[381884919,1756390244031,-480.0,0.00019452,2]
[381884920,1756390244041,-480.0,0.00019452,2]
[381884921,1756390244051,-2447.69,0.00019452,2]
[381884922,1756390244061,-480.0,0.00019452,2]
[381884923,1756390244070,-480.0,0.00019452,2]
[381884924,1756390244081,-480.0,0.00019452,2]
[381884925,1756390244090,-872.41,0.00019452,2]
[381884926,1756390244099,-747.1,0.00019452,2]
[381884927,1756390244109,-480.0,0.00019452,2]
[381884928,1756390244119,-953.96,0.00019452,2]
[381884929,1756390244129,-1129.71,0.00019452,2]
[381884930,1756390244139,-480.0,0.00019452,2]
[381884931,1756390244148,-1235.79,0.00019452,2]
[381884932,1756390244158,-480.0,0.00019452,2]
[381884933,1756390244167,-480.0,0.00019452,2]
[381884934,1756390244177,-480.0,0.00019452,2]
[381884935,1756390244187,-480.0,0.00019452,2]
[381884936,1756390244196,-480.0,0.00019452,2]
[381884937,1756390244206,-480.0,0.00019452,2]
[381884938,1756390244216,-1430.38,0.00019452,2]
[381884939,1756390244227,-517.83,0.00019452,2]
[381884940,1756390244237,-207.833,0.00019671,2]
[381884941,1756390244246,-420.0,0.0001968,2]
[381884942,1756390244256,-1000.0,0.000197,2]
[381884943,1756390244265,-3000.0,0.0001972,2]
[381884944,1756390244275,-1000.0,0.00019721,2]
[381884945,1756390244284,-500.0,0.00019721,2]
[381884946,1756390244294,-480.0,0.00019726,2]
[381884947,1756390244303,-480.0,0.00019726,2]
[381884948,1756390244313,-480.0,0.00019726,2]
[381884949,1756390244322,-480.0,0.00019726,2]
[381884950,1756390244332,-176.39863873,0.00019726,2]
[381884951,1756390244342,-544.15760652,0.00019726,2]
[381884952,1756390244351,-480.0,0.00019726,2]
[381884953,1756390244361,-480.0,0.00019726,2]
[381884954,1756390244370,-480.0,0.00019726,2]
[381884955,1756390244379,-480.0,0.00019726,2]
[381884956,1756390244388,-550.32516196,0.00019726,2]
[381884957,1756390244398,-529.37,0.00019726,2]
[381884958,1756390244407,-480.0,0.00019726,2]
[381884959,1756390244416,-480.0,0.00019726,2]
[381884960,1756390244425,-485.03,0.00019726,2]
[381884961,1756390244435,-480.0,0.00019726,2]
[381884962,1756390244444,-480.0,0.00019726,2]
[381884963,1756390244453,-480.0,0.00019726,2]
[381884964,1756390244463,-480.0,0.00019726,2]
[381884965,1756390244473,-480.0,0.00019726,2]
[381884966,1756390244482,-307.97294769,0.00019726,2]
[381884967,1756390244493,-480.0,0.00019726,2]
[381884968,1756390244505,-480.0,0.00019726,2]
[381884969,1756390244515,-480.0,0.00019726,2]
[381884970,1756390244524,-480.0,0.00019726,2]
[381884971,1756390244533,-480.0,0.00019726,2]
[381884972,1756390244544,-480.0,0.00019726,2]
[381884973,1756390244553,-522.93399676,0.00019726,2]
[381884974,1756390244563,-480.0,0.00019726,2]
[381884975,1756390244572,-480.0,0.00019726,2]
[381884976,1756390244582,-480.0,0.00019726,2]
[381884977,1756390244592,-480.0,0.00019726,2]
[381884978,1756390244602,-480.0,0.00019726,2]
[381884979,1756390244611,-480.0,0.00019726,2]
[381884980,1756390244620,-480.0,0.00019726,2]
[381884981,1756390244630,-526.07,0.00019726,2]
[381884982,1756390244639,-480.0,0.00019726,2]
[381884983,1756390244649,-480.0,0.00019726,2]
[381884984,1756390244658,-480.0,0.00019726,2]
[381884985,1756390244667,-493.51,0.00019726,2]
[381884986,1756390244677,-480.0,0.00019726,2]
[381884987,1756390244686,-480.0,0.00019726,2]
[381884988,1756390244695,-480.0,0.00019726,2]
[381884989,1756390244705,-791.6,0.00019726,2]
[381884990,1756390244714,-480.0,0.00019726,2]
[381884991,1756390244724,-480.0,0.00019726,2]
[381884992,1756390244734,-480.0,0.00019726,2]
[381884993,1756390244743,-480.0,0.00019726,2]
[381884994,1756390244752,-480.0,0.00019726,2]
[381884995,1756390244761,-480.0,0.00019726,2]
[381884996,1756390244770,-762.38,0.00019726,2]
[381884997,1756390244780,-480.0,0.00019726,2]
[381884998,1756390244790,-480.0,0.00019726,2]
[381884999,1756390244799,-525.21,0.00019726,2]
[381885000,1756390244809,-480.0,0.00019726,2]
[381885001,1756390244818,-517.02,0.00019726,2]
[381885002,1756390244828,-632.48,0.00019726,2]
[381885003,1756390244837,-480.0,0.00019726,2]
[381885004,1756390244846,-480.0,0.00019726,2]
[381885005,1756390244855,-480.0,0.00019726,2]
[381885006,1756390244864,-480.0,0.00019726,2]
[381885007,1756390244874,-480.0,0.00019726,2]
[381885008,1756390244883,-702.46,0.00019726,2]
[381885009,1756390244892,-480.0,0.00019726,2]
[381885010,1756390244901,-480.0,0.00019726,2]
[381885011,1756390244910,-480.0,0.00019726,2]
[381885012,1756390244919,-491.59,0.00019726,2]
[381885013,1756390244929,-480.0,0.00019726,2]
[381885014,1756390244938,-480.0,0.00019726,2]
[381885015,1756390244948,-480.0,0.00019726,2]
[381885016,1756390244957,-480.0,0.00019726,2]
[381885017,1756390244967,-151.0,0.00019726,2]
[381885018,1756390244978,-738.47,0.00019726,2]
[381885019,1756390244988,-480.0,0.00019726,2]
[381885020,1756390244998,-496.16,0.00019726,2]
[381885021,1756390245007,-418.81455795,0.00019726,2]
[381885022,1756390245017,-480.0,0.00019726,2]
[381885023,1756390245035,-480.0,0.00019726,2]
[381885024,1756390245209,-480.0,0.00019726,2]
[381885025,1756390245219,-480.0,0.00019726,2]
[381885026,1756390245233,-480.0,0.00019726,2]
[381885027,1756390245243,-606.98,0.00019726,2]
[381885028,1756390245253,-1150.46,0.00019726,2]
[381885029,1756390245262,-505.94,0.00019726,2]
[381885030,1756390245271,-480.0,0.00019726,2]
[381885031,1756390245281,-480.0,0.00019726,2]
[381885032,1756390245291,-480.0,0.00019726,2]
[381885033,1756390245300,-480.0,0.00019726,2]
[381885034,1756390245310,-480.0,0.00019726,2]
[381885035,1756390245319,-482.47453271,0.00019726,2]
[381885036,1756390245329,-676.67,0.00019726,2]
[381885037,1756390245338,-566.43,0.00019726,2]
[381885038,1756390245348,-512.52755091,0.00019726,2]
[381885039,1756390245358,-480.0,0.00019726,2]
[381885040,1756390245367,-480.0,0.00019726,2]
[381885041,1756390245376,-151.0,0.00019726,2]
[381885042,1756390245386,-480.0,0.00019726,2]
[381885043,1756390245395,-151.0,0.00019726,2]
[381885044,1756390245405,-666.62,0.00019726,2]
[381885045,1756390245415,-480.0,0.00019726,2]
[381885046,1756390245424,-480.0,0.00019726,2]
[381885047,1756390245433,-480.0,0.00019726,2]
[381885048,1756390245443,-151.0,0.00019726,2]
[381885049,1756390245452,-480.0,0.00019726,2]
[381885051,1756390245462,-480.0,0.00019726,2]
[381885052,1756390245474,-452.98406637,0.00019726,2]
[381885053,1756390245484,-183.8074,0.00019726,2]
[381885054,1756390245494,-151.0,0.00019726,2]
[381885055,1756390245507,-151.0,0.00019726,2]
[381885056,1756390245517,-2721.04,0.00019726,2]
[381885057,1756390245526,-480.0,0.00019726,2]
[381885058,1756390245535,-485.28,0.00019726,2]
[381885059,1756390245546,-859.16,0.00019726,2]
[381885060,1756390245556,-480.0,0.00019726,2]
[381885061,1756390245566,-869.41,0.00019726,2]
[381885062,1756390245577,-480.0,0.00019726,2]
[381885063,1756390245588,-480.0,0.00019726,2]
[381885064,1756390245598,-480.0,0.00019726,2]
[381885065,1756390245608,-1794.28,0.00019726,2]
[381885066,1756390245618,-480.0,0.00019726,2]
[381885067,1756390245628,-480.0,0.00019726,2]
[381885068,1756390245638,-689.56,0.00019726,2]
[381885069,1756390245648,-480.0,0.00019726,2]
[381885070,1756390245658,-480.0,0.00019726,2]
[381885071,1756390245668,-480.0,0.00019726,2]
[381885072,1756390245678,-270.60117155,0.00019726,2]
[381885074,1756390245687,-480.0,0.00019726,2]
[381885075,1756390245697,-480.0,0.00019726,2]
[381885076,1756390245706,-480.0,0.00019726,2]
[381885077,1756390245716,-2148.57,0.00019726,2]
[381885078,1756390245728,-480.0,0.00019726,2]
[381885079,1756390245738,-480.0,0.00019726,2]
[381885081,1756390245747,-480.0,0.00019726,2]
[381885083,1756390245757,-1096.18,0.00019726,2]
[381885084,1756390245766,-480.0,0.00019726,2]
[381885085,1756390245776,-480.0,0.00019726,2]
[381885086,1756390245786,-480.0,0.00019726,2]
[381885087,1756390245795,-151.0,0.00019726,2]
[381885088,1756390245805,-514.08,0.00019726,2]
[381885089,1756390245814,-577.34,0.00019726,2]
[381885090,1756390245823,-480.0,0.00019726,2]
[381885091,1756390245833,-480.0,0.00019726,2]
[381885092,1756390245843,-1731.68,0.00019726,2]
[381885093,1756390245851,-1238.18,0.00019726,2]
[381885094,1756390245861,-151.0,0.00019726,2]
[381885095,1756390245871,-480.0,0.00019726,2]
[381885096,1756390245881,-2879.86,0.00019726,2]
[381885097,1756390245891,-151.0,0.00019726,2]
[381885098,1756390245900,-538.0,0.00019726,2]
[381885099,1756390245910,-480.0,0.00019726,2]
[381885100,1756390245920,-480.0,0.00019726,2]
[381885101,1756390245930,-151.0,0.00019726,2]
[381885102,1756390245940,-480.0,0.00019726,2]
[381885103,1756390245949,-151.0,0.00019726,2]
[381885104,1756390245958,-480.0,0.00019726,2]
[381885105,1756390245967,-480.0,0.00019726,2]
[381885106,1756390245981,-4523.88,0.00019726,2]
[381885107,1756390245991,-740.67,0.00019726,2]
[381885108,1756390246001,-480.0,0.00019726,2]
[381885109,1756390246011,-480.0,0.00019726,2]
[381885110,1756390246020,-151.0,0.00019726,2]
[381885111,1756390246030,-2214.23,0.00019726,2]
[381885112,1756390246039,-480.0,0.00019726,2]
[381885113,1756390246049,-2893.15,0.00019726,2]
[381885114,1756390246061,-480.0,0.00019726,2]
[381885115,1756390246070,-1321.12,0.00019726,2]
[381885116,1756390246079,-480.0,0.00019726,2]
[381885117,1756390246089,-480.0,0.00019726,2]
[381885118,1756390246098,-480.0,0.00019726,2]
[381885119,1756390246107,-1313.43,0.00019726,2]
[381885120,1756390246117,-480.0,0.00019726,2]
[381885121,1756390246126,-480.0,0.00019726,2]
[381885122,1756390246135,-480.0,0.00019726,2]
[381885123,1756390246145,-480.0,0.00019726,2]
[381885124,1756390246155,-480.0,0.00019726,2]
[381885125,1756390246165,-2213.76,0.00019726,2]
[381885126,1756390246175,-480.0,0.00019726,2]
[381885127,1756390246184,-480.0,0.00019726,2]
[381885128,1756390246194,-480.0,0.00019726,2]
[381885129,1756390246204,-1462.65,0.00019726,2]
[381885130,1756390246213,-480.0,0.00019726,2]
[381885131,1756390246228,-3398.86,0.00019726,2]
[381885132,1756390246237,-480.0,0.00019726,2]
[381885133,1756390246247,-480.0,0.00019726,2]
[381885134,1756390246256,-480.0,0.00019726,2]
[381885135,1756390246266,-151.0,0.00019726,2]
[381885136,1756390246276,-618.19,0.00019726,2]
[381885137,1756390246286,-609.17,0.00019726,2]
[381885138,1756390246296,-480.0,0.00019726,2]
[381885139,1756390246306,-480.0,0.00019726,2]
[381885140,1756390246315,-480.0,0.00019726,2]
[381885141,1756390246325,-480.0,0.00019726,2]
[381885142,1756390246335,-1003.09,0.00019726,2]
[381885143,1756390246344,-480.0,0.00019726,2]
[381885144,1756390246354,-480.0,0.00019726,2]
[381885145,1756390246363,-491.98,0.00019726,2]
[381885146,1756390246372,-572.96,0.00019726,2]
[381885147,1756390246382,-2866.05,0.00019726,2]
[381885148,1756390246392,-480.0,0.00019726,2]
[381885149,1756390246401,-480.0,0.00019726,2]
[381885150,1756390246411,-480.0,0.00019726,2]
[381885151,1756390246420,-480.0,0.00019726,2]
[381885152,1756390246430,-480.0,0.00019726,2]
[381885153,1756390246439,-707.05,0.00019726,2]
[381885154,1756390246452,-480.0,0.00019726,2]
[381885155,1756390246461,-621.84,0.00019726,2]
[381885156,1756390246471,-683.04,0.00019726,2]
[381885157,1756390246484,-480.0,0.00019726,2]
[381885158,1756390246494,-480.0,0.00019726,2]
[381885159,1756390246507,-480.0,0.00019726,2]
[381885160,1756390246516,-480.0,0.00019726,2]
[381885161,1756390246526,-515.85,0.00019726,2]
[381885162,1756390246536,-151.0,0.00019726,2]
[381885163,1756390246546,-151.0,0.00019726,2]
[381885164,1756390246555,-480.0,0.00019726,2]
[381885165,1756390246566,-480.0,0.00019726,2]
[381885166,1756390246576,-480.0,0.00019726,2]
[381885167,1756390246586,-151.0,0.00019726,2]
[381885168,1756390246595,-1804.28,0.00019726,2]
[381885169,1756390246605,-937.39,0.00019726,2]
[381885170,1756390246615,-480.0,0.00019726,2]
[381885171,1756390246624,-151.0,0.00019726,2]
[381885172,1756390246634,-151.0,0.00019726,2]
[381885173,1756390246643,-480.0,0.00019726,2]
[381885174,1756390246652,-480.0,0.00019726,2]
[381885175,1756390246662,-1344.44,0.00019726,2]
[381885176,1756390246671,-480.0,0.00019726,2]
[381885177,1756390246681,-768.17,0.00019726,2]
[381885178,1756390246691,-480.0,0.00019726,2]
[381885179,1756390246700,-480.0,0.00019726,2]
[381885180,1756390246709,-480.0,0.00019726,2]
[381885181,1756390246719,-480.0,0.00019726,2]
[381885182,1756390246730,-480.0,0.00019726,2]
[381885183,1756390246739,-2384.43,0.00019726,2]
[381885184,1756390246749,-480.0,0.00019726,2]
[381885185,1756390246758,-2447.69,0.00019726,2]
[381885186,1756390246767,-480.0,0.00019726,2]
[381885187,1756390246777,-480.0,0.00019726,2]
[381885188,1756390246786,-480.0,0.00019726,2]
[381885189,1756390246795,-480.0,0.00019726,2]
[381885190,1756390246805,-872.41,0.00019726,2]
[381885191,1756390246814,-747.1,0.00019726,2]
[381885192,1756390246824,-480.0,0.00019726,2]
[381885193,1756390246833,-953.96,0.00019726,2]
[381885194,1756390246843,-1129.71,0.00019726,2]
[381885195,1756390246852,-151.0,0.00019726,2]
[381885196,1756390246861,-480.0,0.00019726,2]
[381885197,1756390246871,-192.5932,0.00019726,2]
[381885198,1756390246880,-192.5932,0.00019726,2]
[381885199,1756390246890,-192.5932,0.00019726,2]
[381885200,1756390246900,-192.5932,0.00019726,2]
[381885201,1756390246909,-1235.79,0.00019726,2]
[381885202,1756390246919,-480.0,0.00019726,2]
[381885203,1756390246928,-480.0,0.00019726,2]
[381885204,1756390246938,-480.0,0.00019726,2]
[381885205,1756390246947,-480.0,0.00019726,2]
[381885206,1756390246957,-151.0,0.00019726,2]
[381885207,1756390246966,-227.359048,0.00019726,2]
[381885208,1756390246978,-151.0,0.00019726,2]
[381885209,1756390246988,-480.0,0.00019726,2]
[381885210,1756390246997,-1430.38,0.00019726,2]
[381885211,1756390247007,-517.83,0.00019726,2]
[381885212,1756390247017,-222.869,0.00019753,2]
[381885213,1756390247026,-204.131,0.00019753,2]
[381885214,1756390247036,-250.119,0.00019753,2]
[381885215,1756390247045,-249.1,0.00019753,2]
[381885216,1756390247055,-261.808,0.00019753,2]
[381885217,1756390247065,-220.618,0.00019753,2]
[381885218,1756390247075,-974.0,0.00019753,2]
[381885219,1756390247085,-638.0,0.00019753,2]
[381885220,1756390247095,-2157.0,0.00019753,2]
[381885221,1756390247105,-571.7262436,0.00019758,2]
[381885222,1756390247114,-500.0,0.00019773,2]
[381885223,1756390247124,-500.0,0.00019773,2]
[381885224,1756390247133,-500.0,0.00019773,2]
[381885225,1756390247143,-500.0,0.00019773,2]
[381885226,1756390247152,-500.0,0.00019773,2]
[381885227,1756390247161,-500.0,0.00019773,2]
[381885228,1756390247171,-500.0,0.00019773,2]
[381885229,1756390247181,-500.0,0.00019773,2]
[381885230,1756390247191,-500.0,0.00019773,2]
[381885231,1756390247200,-500.0,0.00019773,2]
[381885232,1756390247210,-500.0,0.00019773,2]
[381885233,1756390247219,-500.0,0.00019773,2]
[381885234,1756390247231,-500.0,0.00019773,2]
[381885235,1756390247240,-500.0,0.00019773,2]
[381885236,1756390247250,-500.0,0.00019773,2]
[381885237,1756390247259,-500.0,0.00019773,2]
[381885238,1756390247269,-500.0,0.00019773,2]
[381885239,1756390247278,-500.0,0.00019773,2]
[381885240,1756390247287,-500.0,0.00019773,2]
[381885241,1756390247297,-500.0,0.00019773,2]
[381885242,1756390247307,-500.0,0.00019773,2]
[381885243,1756390247316,-500.0,0.00019773,2]
[381885244,1756390247325,-684.285549,0.00019863,2]
[381885245,1756390247337,-168.0,0.00019874,2]
[381885246,1756390247350,-905.97462646,0.00019876,2]
[381885247,1756390247363,-6000.0,0.00019898,2]
[381885248,1756390247376,-151.0,0.000199,2]
[381885249,1756390247388,-183.473993,0.000199,2]
[381885250,1756390247400,-11599.87802879,0.000199,2]
[381885251,1756390247411,-160.0,0.000199,2]
[381885252,1756390247421,-168.0,0.00019903,2]
[381885253,1756390247434,-168.0,0.00019915,2]
[381885254,1756390247446,-151.0,0.00019926,2]
[381885255,1756390247457,-151.0,0.00019926,2]
[381885256,1756390247469,-151.0,0.00019926,2]
[381885257,1756390247484,-500.0,0.00019946,2]
[381885258,1756390247497,-5000.0,0.00019964,2]
[381885259,1756390247511,-540.926,0.0001998,2]
[381885260,1756390247523,-400.0,0.0002,2]
[381885261,1756390247535,-3000.0,0.0002,2]
[381885262,1756390247548,-151.0,0.0002,2]
[381885263,1756390247561,-467.57908722,0.0002,2]
[381885264,1756390247573,-167.14806288,0.0002,2]
[381885265,1756390247586,-575.69843924,0.0002,2]
[381885266,1756390247597,-480.0,0.0002,2]
[381885267,1756390247609,-480.0,0.0002,2]
[381885268,1756390247620,-198.0,0.0002,2]
[381885269,1756390247631,-480.0,0.0002,2]
[381885270,1756390247642,-480.0,0.0002,2]
[381885271,1756390247654,-480.0,0.0002,2]
[381885272,1756390247666,-529.37,0.0002,2]
[381885273,1756390247678,-151.0,0.0002,2]
[381885274,1756390247690,-480.0,0.0002,2]
[381885275,1756390247701,-480.0,0.0002,2]
[381885276,1756390247710,-485.03,0.0002,2]
[381885277,1756390247721,-151.0,0.0002,2]
[381885278,1756390247736,-480.0,0.0002,2]
[381885279,1756390247746,-480.0,0.0002,2]
[381885280,1756390247759,-480.0,0.0002,2]
[381885281,1756390247771,-219.14901394,0.0002,2]
[381885282,1756390247783,-465.1457595,0.0002,2]
[381885283,1756390247796,-480.0,0.0002,2]
[381885284,1756390247808,-480.0,0.0002,2]
[381885285,1756390247819,-480.0,0.0002,2]
[381885286,1756390247831,-480.0,0.0002,2]
[381885287,1756390247843,-480.0,0.0002,2]
[381885288,1756390247855,-480.0,0.0002,2]
[381885289,1756390247867,-480.0,0.0002,2]
[381885290,1756390247878,-480.0,0.0002,2]
[381885291,1756390247888,-480.0,0.0002,2]
[381885292,1756390247898,-480.0,0.0002,2]
[381885293,1756390247908,-480.0,0.0002,2]
[381885294,1756390247918,-480.0,0.0002,2]
[381885295,1756390247929,-480.0,0.0002,2]
[381885296,1756390247940,-526.07,0.0002,2]
[381885297,1756390247952,-480.0,0.0002,2]
[381885298,1756390247964,-480.0,0.0002,2]
[381885299,1756390247978,-480.0,0.0002,2]
[381885300,1756390247990,-216.713959,0.0002,20]
[381885301,1756390248000,-493.51,0.0002,2]
[381885302,1756390248011,-480.0,0.0002,2]
[381885303,1756390248022,-480.0,0.0002,2]
[381885304,1756390248033,-480.0,0.0002,2]
[381885305,1756390248046,-791.6,0.0002,2]
[381885306,1756390248058,-153.198705,0.0002,20]
[381885307,1756390248070,-480.0,0.0002,2]
[381885308,1756390248080,-480.0,0.0002,2]
[381885309,1756390248091,-480.0,0.0002,2]
[381885310,1756390248102,-480.0,0.0002,2]
[381885311,1756390248113,-480.0,0.0002,2]
[381885312,1756390248125,-480.0,0.0002,2]
[381885313,1756390248136,-762.38,0.0002,2]
[381885314,1756390248147,-480.0,0.0002,2]
[381885315,1756390248159,-480.0,0.0002,2]
[381885316,1756390248170,-525.21,0.0002,2]
[381885317,1756390248181,-480.0,0.0002,2]
[381885318,1756390248192,-517.02,0.0002,2]
[381885319,1756390248203,-632.48,0.0002,2]
[381885320,1756390248214,-480.0,0.0002,2]
[381885321,1756390248228,-480.0,0.0002,2]
[381885322,1756390248240,-480.0,0.0002,2]
[381885323,1756390248251,-480.0,0.0002,2]
[381885324,1756390248262,-480.0,0.0002,2]
[381885325,1756390248274,-702.46,0.0002,2]
[381885326,1756390248284,-480.0,0.0002,2]
[381885327,1756390248295,-413.76983195,0.0002,2]
[381885328,1756390248306,-480.0,0.0002,2]
[381885329,1756390248317,-491.59,0.0002,2]
[381885330,1756390248328,-480.0,0.0002,2]
[381885331,1756390248338,-480.0,0.0002,2]
[381885332,1756390248349,-480.0,0.0002,2]
[381885333,1756390248360,-480.0,0.0002,2]
[381885334,1756390248371,-151.0,0.0002,2]
[381885335,1756390248382,-738.47,0.0002,2]
[381885336,1756390248394,-480.0,0.0002,2]
[381885337,1756390248405,-496.16,0.0002,2]
[381885338,1756390248415,-480.0,0.0002,2]
[381885339,1756390248427,-480.0,0.0002,2]
[381885340,1756390248438,-480.0,0.0002,2]
[381885341,1756390248449,-480.0,0.0002,2]
[381885342,1756390248460,-480.0,0.0002,2]
[381885343,1756390248471,-606.98,0.0002,2]
[381885344,1756390248484,-1150.46,0.0002,2]
[381885345,1756390248496,-505.94,0.0002,2]
[381885346,1756390248510,-480.0,0.0002,2]
[381885347,1756390248520,-480.0,0.0002,2]
[381885348,1756390248531,-480.0,0.0002,2]
[381885349,1756390248545,-480.0,0.0002,2]
[381885350,1756390248556,-480.0,0.0002,2]
[381885351,1756390248569,-676.67,0.0002,2]
[381885352,1756390248580,-566.43,0.0002,2]
[381885353,1756390248591,-480.0,0.0002,2]
[381885354,1756390248603,-480.0,0.0002,2]
[381885355,1756390248614,-151.0,0.0002,2]
[381885356,1756390248629,-480.0,0.0002,2]
[381885357,1756390248641,-165.666316,0.0002,2]
[381885358,1756390248652,-666.62,0.0002,2]
[381885359,1756390248666,-480.0,0.0002,2]
[381885360,1756390248676,-480.0,0.0002,2]
[381885361,1756390248687,-480.0,0.0002,2]
[381885362,1756390248698,-151.0,0.0002,2]
[381885363,1756390248710,-480.0,0.0002,2]
[381885364,1756390248721,-480.0,0.0002,2]
[381885365,1756390248734,-200.910113,0.0002,2]
[381885366,1756390248745,-151.0,0.0002,2]
[381885367,1756390248756,-2721.04,0.0002,2]
[381885368,1756390248767,-151.0,0.0002,2]
[381885369,1756390248777,-480.0,0.0002,2]
[381885370,1756390248789,-485.28,0.0002,2]
[381885371,1756390248800,-859.16,0.0002,2]
[381885372,1756390248811,-480.0,0.0002,2]
[381885373,1756390248822,-869.41,0.0002,2]
[381885374,1756390248833,-163.215201,0.0002,2]
[381885375,1756390248844,-480.0,0.0002,2]
[381885376,1756390248855,-480.0,0.0002,2]
[381885377,1756390248866,-480.0,0.0002,2]
[381885378,1756390248878,-1794.28,0.0002,2]
[381885379,1756390248889,-480.0,0.0002,2]
[381885380,1756390248901,-480.0,0.0002,2]
[381885381,1756390248912,-689.56,0.0002,2]
[381885382,1756390248923,-480.0,0.0002,2]
[381885383,1756390248934,-480.0,0.0002,2]
[381885384,1756390248946,-480.0,0.0002,2]
[381885385,1756390248957,-480.0,0.0002,2]
[381885386,1756390248968,-480.0,0.0002,2]
[381885387,1756390248981,-2148.57,0.0002,2]
[381885388,1756390248993,-480.0,0.0002,2]
[381885389,1756390249004,-480.0,0.0002,2]